[Event "FIDE WYCC Girls U14 2023"]
[Site "Montesilvano"]
[Date "2023.11.14"]
[Round "2.6"]
[White "Dicen, Elis Denele"]
[Black "Saparya Ghosh"]
[Result "1/2-1/2"]
[ECO "E40"]
[WhiteElo "1976"]
[BlackElo "1659"]
[Annotator "NA"]
[PlyCount "87"]
[EventDate "2023.11.13"]
[EventType "swiss"]
[EventCountry "ITA"]
[SourceTitle "playchess.com"]
[Source "ChessBase"]
[SourceQuality "1"]
[TimeControl "40/5400+30:1800+30"]

1. d4 {[%emt 0:00:03]} Nf6 {[%emt 0:00:26]} 2. c4 {[%emt 0:00:17]} e6 {[%emt 0:00:13]} 3. Nc3 {[%emt 0:00:14]} Bb4 {[%emt 0:00:18]} 4. e3 {[%emt 0:00:27]} d5 {[%emt 0:00:26]} 5. Nf3 {[%emt 0:00:28]} O-O {[%emt 0:00:10]} 6. Bd2 {[%emt 0:00:36]} Nbd7 {[%emt 0:04:03]} 7. Bd3 {[%emt 0:01:18]} c6 {[%emt 0:11:52]} 8. O-O {[%emt 0:04:46]} dxc4 {[%emt 0:02:28]} 9. Bxc4 {[%emt 0:01:09]} b5 {[%emt 0:00:20]} 10. Bd3 {[%emt 0:04:19]} Bb7 {[%emt 0:03:39]} 11. a3 {[%emt 0:02:48]} Be7 {[%emt 0:02:57]} 12. Rc1 {[%emt 0:08:38]} a6 {[%emt 0:14:20]} 13. Ne4 {[%emt 0:20:04]} c5 {[%emt 0:02:09]} 14. Nxf6+ {[%emt 0:06:44]} Bxf6 {[%emt 0:13:56]} 15. Bc3 {[%emt 0:03:58]} cxd4 {[%emt 0:06:54]} 16. Nxd4 {[%emt 0:03:02]} Ne5 {[%emt 0:02:57]} 17. Bc2 {[%emt 0:07:12]} Qd5 {[%emt 0:06:34]} 18. e4 {[%emt 0:03:30]} Qd7 {[%emt 0:09:29]} 19. Qe2 {[%emt 0:07:48]} Nc6 {[%emt 0:07:08]} 20. Nxc6 {[%emt 0:04:30]} Bxc3 {[%emt 0:00:14]} 21. bxc3 {[%emt 0:00:55]} Qxc6 {[%emt 0:00:07]} 22. Bd3 {[%emt 0:01:56]} Qd6 {[%emt 0:02:57]} 23. Ra1 {[%emt 0:02:04]} Rac8 {[%emt 0:00:53]} 24. c4 {[%emt 0:04:22]} bxc4 {[%emt 0:06:51]} 25. Bxc4 {[%emt 0:00:18]} Qc6 {[%emt 0:00:16]} 26. Bd3 {[%emt 0:00:43]} e5 {[%emt 0:00:33]} 27. Rfe1 {[%emt 0:01:48]} Rfd8 {[%emt 0:00:34]} 28. Rad1 {[%emt 0:02:32]} Qa4 {[%emt 0:00:31]} 29. Rb1 {[%emt 0:03:27]} Qxa3 {[%emt 0:00:42]} 30. Rxb7 {[%emt 0:01:04]} Qxd3 {[%emt 0:00:52]} 31. Qh5 {[%emt 0:01:07]} Qc4 {[%emt 0:00:39]} 32. Qxe5 {[%emt 0:01:18]} Re8 {[%emt 0:00:29]} 33. Re7 {[%emt 0:00:47]} Rxe7 {[%emt 0:00:29]} 34. Qxe7 {[%emt 0:00:11]} Qc5 {[%emt 0:00:31]} 35. Qxc5 {[%emt 0:00:16]} Rxc5 {[%emt 0:00:02]} 36. f3 {[%emt 0:00:35]} Kf8 {[%emt 0:00:14]} 37. Kf2 {[%emt 0:00:48]} Rc2+ {[%emt 0:00:10]} 38. Kg3 {[%emt 0:00:21]} Ra2 {[%emt 0:00:07]} 39. Rb1 {[%emt 0:00:49]} Ke7 {[%emt 0:00:12]} 40. Rb7+ {[%emt 0:00:00]} Ke6 {[%emt 0:00:00]} 41. h3 {[%emt 0:02:14]} g5 {[%emt 0:04:30]} 42. f4 {[%emt 0:04:26]} gxf4+ {[%emt 0:02:49]} 43. Kxf4 {[%emt 0:00:25]} Rxg2 {[%emt 0:00:31]} 44. Rb6+ {[%emt 0:00:27]} 1/2-1/2

[Event "FIDE WYCC Girls U14 2023"]
[Site "Montesilvano"]
[Date "2023.11.14"]
[Round "2.7"]
[White "Stefan, Iulia-Cristiana"]
[Black "Kaliakhmet, Elnaz"]
[Result "1/2-1/2"]
[ECO "A43"]
[WhiteElo "1748"]
[BlackElo "1933"]
[Annotator "NA"]
[PlyCount "63"]
[EventDate "2023.11.13"]
[EventType "swiss"]
[EventCountry "ITA"]
[SourceTitle "playchess.com"]
[Source "ChessBase"]
[SourceQuality "1"]
[TimeControl "40/5400+30:1800+30"]

1. d4 {[%emt 0:00:02]} Nf6 {[%emt 0:00:16]} 2. Nf3 {[%emt 0:00:07]} c5 {[%emt 0:00:47]} 3. d5 {[%emt 0:00:09]} b5 {[%emt 0:00:16]} 4. c3 {[%emt 0:00:06]} Bb7 {[%emt 0:01:34]} 5. e4 {[%emt 0:00:23]} a6 {[%emt 0:15:21]} 6. Bd3 {[%emt 0:03:10]} g6 {[%emt 0:06:31]} 7. O-O {[%emt 0:02:11]} Bg7 {[%emt 0:00:28]} 8. a4 {[%emt 0:01:31]} O-O {[%emt 0:06:59]} 9. Nbd2 {[%emt 0:04:10]} e6 {[%emt 0:06:29]} 10. axb5 {[%emt 0:07:33]} exd5 {[%emt 0:04:40]} 11. exd5 {[%emt 0:00:47]} axb5 {[%emt 0:01:38]} 12. Rxa8 {[%emt 0:00:10]} Bxa8 {[%emt 0:00:04]} 13. Bxb5 {[%emt 0:00:22]} Nxd5 {[%emt 0:03:40]} 14. Qa4 {[%emt 0:13:43]} Nb6 {[%emt 0:07:00]} 15. Qa5 {[%emt 0:00:39]} d5 {[%emt 0:02:56]} 16. Nb3 {[%emt 0:02:29]} N8d7 {[%emt 0:03:46]} 17. Bg5 {[%emt 0:05:23]} Qb8 {[%emt 0:02:03]} 18. Be7 {[%emt 0:08:53]} Rc8 {[%emt 0:02:07]} 19. Bxd7 {[%emt 0:09:51]} Nxd7 {[%emt 0:00:04]} 20. Nxc5 {[%emt 0:00:22]} Nxc5 {[%emt 0:02:43]} 21. Bxc5 {[%emt 0:00:09]} Qxb2 {[%emt 0:00:11]} 22. Bd4 {[%emt 0:00:43]} Bb7 {[%emt 0:08:09]} 23. Qa1 {[%emt 0:04:25]} Qxa1 {[%emt 0:06:42]} 24. Rxa1 {[%emt 0:00:06]} Bc6 {[%emt 0:02:58]} 25. Ne5 {[%emt 0:03:32]} Bb5 {[%emt 0:03:52]} 26. Ra5 {[%emt 0:02:01]} Rb8 {[%emt 0:00:59]} 27. g3 {[%emt 0:01:03]} f6 {[%emt 0:02:14]} 28. Ng4 {[%emt 0:02:03]} f5 {[%emt 0:04:28]} 29. Nf6+ {[%emt 0:15:19]} Bxf6 {[%emt 0:00:11]} 30. Bxf6 {[%emt 0:00:05]} Bd3 {[%emt 0:00:37]} 31. Ra2 {[%emt 0:04:05]} Be4 {[%emt 0:00:38]} 32. f4 {[%emt 0:00:33]} 1/2-1/2

[Event "FIDE WYCC Girls U14 2023"]
[Site "Montesilvano"]
[Date "2023.11.14"]
[Round "2.8"]
[White "Kirtadze, Anastasia"]
[Black "Viti, Greta"]
[Result "1-0"]
[ECO "C78"]
[WhiteElo "1921"]
[BlackElo "1644"]
[Annotator "NA"]
[PlyCount "77"]
[EventDate "2023.11.13"]
[EventType "swiss"]
[EventCountry "ITA"]
[SourceTitle "playchess.com"]
[Source "ChessBase"]
[SourceQuality "1"]
[TimeControl "40/5400+30:1800+30"]

1. e4 {[%emt 0:00:01]} e5 {[%emt 0:00:04]} 2. Nf3 {[%emt 0:00:03]} Nc6 {[%emt 0:00:05]} 3. Bb5 {[%emt 0:00:03]} a6 {[%emt 0:00:05]} 4. Ba4 {[%emt 0:00:02]} Nf6 {[%emt 0:00:05]} 5. O-O {[%emt 0:00:05]} b5 {[%emt 0:00:03]} 6. Bb3 {[%emt 0:00:01]} Bc5 {[%emt 0:00:06]} 7. a4 {[%emt 0:02:14]} Ba7 {[%emt 0:07:54]} 8. d3 {[%emt 0:02:57]} d6 {[%emt 0:07:27]} 9. h3 {[%emt 0:02:47]} O-O {[%emt 0:02:04]} 10. Nc3 {[%emt 0:02:06]} Be6 {[%emt 0:12:18]} 11. Bg5 {[%emt 0:09:37]} bxa4 {[%emt 0:18:20]} 12. Rxa4 {[%emt 0:12:28]} Nd4 {[%emt 0:02:56]} 13. Nxd4 {[%emt 0:01:26]} Bxd4 {[%emt 0:00:16]} 14. Nd5 {[%emt 0:00:58]} Bxd5 {[%emt 0:00:19]} 15. Bxd5 {[%emt 0:00:05]} Ra7 {[%emt 0:02:43]} 16. c3 {[%emt 0:04:17]} Bb6 {[%emt 0:00:44]} 17. Qf3 {[%emt 0:01:32]} Kh8 {[%emt 0:09:36]} 18. Rfa1 {[%emt 0:02:20]} Qe7 {[%emt 0:02:16]} 19. Rxa6 {[%emt 0:01:58]} Rxa6 {[%emt 0:00:10]} 20. Rxa6 {[%emt 0:00:02]} Rb8 {[%emt 0:01:05]} 21. b4 {[%emt 0:01:24]} Kg8 {[%emt 0:01:37]} 22. Kh2 {[%emt 0:03:07]} h6 {[%emt 0:00:45]} 23. Be3 {[%emt 0:03:37]} Nxd5 {[%emt 0:01:43]} 24. exd5 {[%emt 0:00:14]} Bxe3 {[%emt 0:01:38]} 25. Qxe3 {[%emt 0:02:39]} Qf6 {[%emt 0:01:49]} 26. Ra7 {[%emt 0:03:58]} Rc8 {[%emt 0:00:18]} 27. c4 {[%emt 0:00:10]} Qh4 {[%emt 0:05:31]} 28. Rb7 {[%emt 0:02:22]} Qf6 {[%emt 0:02:43]} 29. c5 {[%emt 0:02:38]} Kh8 {[%emt 0:01:00]} 30. c6 {[%emt 0:00:47]} Kg8 {[%emt 0:01:36]} 31. b5 {[%emt 0:00:05]} Qh4 {[%emt 0:06:12]} 32. b6 {[%emt 0:03:03]} cxb6 {[%emt 0:00:44]} 33. Qxb6 {[%emt 0:03:53]} Qf4+ {[%emt 0:01:27]} 34. g3 {[%emt 0:00:18]} Qf3 {[%emt 0:00:25]} 35. c7 {[%emt 0:00:53]} Kh7 {[%emt 0:01:22]} 36. Kg1 {[%emt 0:00:13]} Qd1+ {[%emt 0:06:11]} 37. Kg2 {[%emt 0:00:05]} Qc1 {[%emt 0:00:38]} 38. Qxd6 {[%emt 0:00:28]} Qc2 {[%emt 0:02:23]} 39. Qd7 {[%emt 0:00:51]} 1-0

[Event "FIDE WYCC Girls U14 2023"]
[Site "Montesilvano"]
[Date "2023.11.14"]
[Round "2.9"]
[White "Sachi Jain"]
[Black "Jiang, Tianyu"]
[Result "1-0"]
[ECO "B40"]
[WhiteElo "1743"]
[BlackElo "1917"]
[Annotator "NA"]
[PlyCount "93"]
[EventDate "2023.11.13"]
[EventType "swiss"]
[EventCountry "ITA"]
[SourceTitle "playchess.com"]
[Source "ChessBase"]
[SourceQuality "1"]
[TimeControl "40/5400+30:1800+30"]

1. e4 {[%emt 0:00:11]} c5 {[%emt 0:00:09]} 2. Nf3 {[%emt 0:00:15]} e6 {[%emt 0:00:06]} 3. d3 {[%emt 0:00:19]} d5 {[%emt 0:00:04]} 4. Nbd2 {[%emt 0:00:16]} Nc6 {[%emt 0:00:07]} 5. g3 {[%emt 0:00:35]} Nf6 {[%emt 0:00:16]} 6. Bg2 {[%emt 0:00:04]} h6 {[%emt 0:00:32]} 7. O-O {[%emt 0:00:58]} Be7 {[%emt 0:00:07]} 8. Re1 {[%emt 0:00:42]} O-O {[%emt 0:00:15]} 9. h4 {[%emt 0:00:50]} Qc7 {[%emt 0:08:02]} 10. e5 {[%emt 0:06:55]} Nh7 {[%emt 0:01:13]} 11. Nf1 {[%emt 0:06:08]} b5 {[%emt 0:05:24]} 12. Bf4 {[%emt 0:02:46]} a5 {[%emt 0:07:08]} 13. N1h2 {[%emt 0:06:22]} Ba6 {[%emt 0:00:21]} 14. Ng4 {[%emt 0:01:32]} Kh8 {[%emt 0:04:01]} 15. Qd2 {[%emt 0:04:31]} Rg8 {[%emt 0:15:45]} 16. h5 {[%emt 0:09:02]} b4 {[%emt 0:02:06]} 17. c3 {[%emt 0:07:22]} a4 {[%emt 0:02:43]} 18. Rec1 {[%emt 0:07:18]} a3 {[%emt 0:15:08]} 19. cxb4 {[%emt 0:16:16]} axb2 {[%emt 0:07:00]} 20. Qxb2 {[%emt 0:00:05]} Rgb8 {[%emt 0:10:14]} 21. a3 {[%emt 0:05:32]} Bxd3 {[%emt 0:04:16]} 22. Qc3 {[%emt 0:07:17]} Bc4 {[%emt 0:01:35]} 23. bxc5 {[%emt 0:01:05]} Rb3 {[%emt 0:02:04]} 24. Qe1 {[%emt 0:07:28]} Rbxa3 {[%emt 0:02:54]} 25. Rxa3 {[%emt 0:02:50]} Rxa3 {[%emt 0:00:05]} 26. Ne3 {[%emt 0:00:17]} Na5 {[%emt 0:05:26]} 27. Nxc4 {[%emt 0:04:39]} Nxc4 {[%emt 0:00:17]} 28. Nd2 {[%emt 0:00:20]} Nb2 {[%emt 0:04:38]} 29. Nb1 {[%emt 0:02:02]} Nd3 {[%emt 0:01:16]} 30. Qd1 {[%emt 0:00:43]} Nxc1 {[%emt 0:01:15]} 31. Nxa3 {[%emt 0:00:01]} Na2 {[%emt 0:00:19]} 32. Be3 {[%emt 0:00:01]} Nb4 {[%emt 0:01:04]} 33. Qa4 {[%emt 0:01:13]} Bxc5 {[%emt 0:00:35]} 34. Nb5 {[%emt 0:00:12]} Qe7 {[%emt 0:00:20]} 35. Bxc5 {[%emt 0:00:54]} Qxc5 {[%emt 0:00:02]} 36. Nd6 {[%emt 0:00:01]} Ng5 {[%emt 0:01:00]} 37. Nxf7+ {[%emt 0:00:30]} Nxf7 {[%emt 0:00:30]} 38. Qe8+ {[%emt 0:00:01]} Kh7 {[%emt 0:00:12]} 39. Qxf7 {[%emt 0:00:38]} Qc1+ {[%emt 0:00:50]} 40. Bf1 {[%emt 0:00:00]} Qg5 {[%emt 0:00:00]} 41. Qxe6 {[%emt 0:03:38]} Qd8 {[%emt 0:18:07]} 42. Bb5 {[%emt 0:09:29]} Qb8 {[%emt 0:08:15]} 43. Ba4 {[%emt 0:05:00]} Qa7 {[%emt 0:04:06]} 44. Be8 {[%emt 0:00:16]} Qb8 {[%emt 0:01:28]} 45. Qf5+ {[%emt 0:01:13]} Kg8 {[%emt 0:00:08]} 46. Qf7+ {[%emt 0:00:02]} Kh7 {[%emt 0:00:15]} 47. Qf8 {[%emt 0:00:05]} 1-0

[Event "FIDE WYCC Girls U14 2023"]
[Site "Montesilvano"]
[Date "2023.11.14"]
[Round "2.10"]
[White "Qi, Jenny"]
[Black "Tsetskhladze, Mariam"]
[Result "0-1"]
[ECO "B33"]
[WhiteElo "1737"]
[BlackElo "1911"]
[Annotator "NA"]
[PlyCount "70"]
[EventDate "2023.11.13"]
[EventType "swiss"]
[EventCountry "ITA"]
[SourceTitle "playchess.com"]
[Source "ChessBase"]
[SourceQuality "1"]
[TimeControl "40/5400+30:1800+30"]

1. e4 {[%emt 0:00:05]} c5 {[%emt 0:00:20]} 2. Nf3 {[%emt 0:00:11]} e6 {[%emt 0:00:06]} 3. d4 {[%emt 0:00:17]} cxd4 {[%emt 0:00:07]} 4. Nxd4 {[%emt 0:00:06]} Nf6 {[%emt 0:00:05]} 5. Nc3 {[%emt 0:00:16]} Nc6 {[%emt 0:00:07]} 6. Ndb5 {[%emt 0:00:41]} d6 {[%emt 0:00:35]} 7. Bf4 {[%emt 0:00:49]} e5 {[%emt 0:00:07]} 8. Bg5 {[%emt 0:00:11]} a6 {[%emt 0:00:20]} 9. Na3 {[%emt 0:00:12]} b5 {[%emt 0:00:08]} 10. Nd5 {[%emt 0:00:20]} Be7 {[%emt 0:00:08]} 11. Bxf6 {[%emt 0:00:29]} Bxf6 {[%emt 0:00:10]} 12. c3 {[%emt 0:00:37]} O-O {[%emt 0:00:07]} 13. Nc2 {[%emt 0:00:36]} Rb8 {[%emt 0:00:13]} 14. h4 {[%emt 0:02:20]} g6 {[%emt 0:02:16]} 15. h5 {[%emt 0:15:18]} Bg5 {[%emt 0:00:51]} 16. Nce3 {[%emt 0:06:15]} Ne7 {[%emt 0:04:40]} 17. g3 {[%emt 0:06:10]} Be6 {[%emt 0:05:24]} 18. Bh3 {[%emt 0:05:55]} Rb7 {[%emt 0:16:45]} 19. f4 {[%emt 0:11:58]} Nxd5 {[%emt 0:12:44]} 20. Nxd5 {[%emt 0:05:36]} exf4 {[%emt 0:08:23]} 21. gxf4 {[%emt 0:11:18]} Bh4+ {[%emt 0:01:50]} 22. Kd2 {[%emt 0:03:17]} Bxd5 {[%emt 0:02:08]} 23. exd5 {[%emt 0:00:39]} b4 {[%emt 0:01:55]} 24. Qc2 {[%emt 0:06:49]} bxc3+ {[%emt 0:04:51]} 25. bxc3 {[%emt 0:01:51]} Qb6 {[%emt 0:06:42]} 26. Raf1 {[%emt 0:04:28]} Re8 {[%emt 0:05:12]} 27. hxg6 {[%emt 0:09:00]} Qe3+ {[%emt 0:03:48]} 28. Kd1 {[%emt 0:00:10]} hxg6 {[%emt 0:02:07]} 29. Be6 {[%emt 0:02:30]} Kg7 {[%emt 0:11:56]} 30. Rxh4 {[%emt 0:02:59]} Reb8 {[%emt 0:02:42]} 31. Rfh1 {[%emt 0:03:46]} Rb1+ {[%emt 0:00:10]} 32. Qxb1 {[%emt 0:00:05]} Rxb1+ {[%emt 0:00:02]} 33. Kc2 {[%emt 0:00:06]} Qe4+ {[%emt 0:00:05]} 34. Kd2 {[%emt 0:00:09]} Rb2+ {[%emt 0:00:03]} 35. Kc1 {[%emt 0:00:12]} Qc2# {[%emt 0:00:04]} 0-1

[Event "FIDE WYCC Girls U14 2023"]
[Site "Montesilvano"]
[Date "2023.11.14"]
[Round "2.11"]
[White "Li, Anna Sofie"]
[Black "Iordache, Alexia-Andreea"]
[Result "0-1"]
[ECO "B56"]
[WhiteElo "1722"]
[BlackElo "1892"]
[Annotator "NA"]
[PlyCount "136"]
[EventDate "2023.11.13"]
[EventType "swiss"]
[EventCountry "ITA"]
[SourceTitle "playchess.com"]
[Source "ChessBase"]
[SourceQuality "1"]
[TimeControl "40/5400+30:1800+30"]

1. e4 {[%emt 0:00:03]} c5 {[%emt 0:00:02]} 2. Nf3 {[%emt 0:00:07]} d6 {[%emt 0:00:03]} 3. d4 {[%emt 0:00:06]} cxd4 {[%emt 0:00:03]} 4. Nxd4 {[%emt 0:00:09]} Nf6 {[%emt 0:00:03]} 5. Nc3 {[%emt 0:00:08]} Nc6 {[%emt 0:00:08]} 6. f3 {[%emt 0:00:23]} e5 {[%emt 0:00:12]} 7. Nb3 {[%emt 0:00:06]} Be6 {[%emt 0:00:24]} 8. Be3 {[%emt 0:00:10]} Be7 {[%emt 0:00:06]} 9. Qd2 {[%emt 0:03:38]} d5 {[%emt 0:00:11]} 10. exd5 {[%emt 0:00:44]} Nxd5 {[%emt 0:00:04]} 11. Nxd5 {[%emt 0:00:44]} Qxd5 {[%emt 0:00:10]} 12. Qxd5 {[%emt 0:03:30]} Bxd5 {[%emt 0:00:04]} 13. O-O-O {[%emt 0:00:10]} O-O-O {[%emt 0:00:11]} 14. Bb5 {[%emt 0:01:16]} Kc7 {[%emt 0:01:30]} 15. Kb1 {[%emt 0:05:07]} f6 {[%emt 0:02:50]} 16. Rd2 {[%emt 0:10:06]} Bxb3 {[%emt 0:06:53]} 17. cxb3 {[%emt 0:04:06]} Rxd2 {[%emt 0:01:05]} 18. Bxd2 {[%emt 0:06:35]} Rd8 {[%emt 0:11:36]} 19. Be3 {[%emt 0:00:38]} Nd4 {[%emt 0:03:10]} 20. Rc1+ {[%emt 0:01:41]} Kb8 {[%emt 0:00:31]} 21. Bc4 {[%emt 0:03:29]} Nf5 {[%emt 0:22:35]} 22. Bg1 {[%emt 0:03:48]} Nh4 {[%emt 0:04:13]} 23. Bf1 {[%emt 0:02:51]} f5 {[%emt 0:02:44]} 24. Re1 {[%emt 0:05:14]} Bg5 {[%emt 0:02:44]} 25. Bf2 {[%emt 0:02:16]} Ng6 {[%emt 0:01:48]} 26. Be2 {[%emt 0:04:07]} Rd2 {[%emt 0:02:06]} 27. g3 {[%emt 0:01:33]} e4 {[%emt 0:02:07]} 28. Bc5 {[%emt 0:03:50]} Bf6 {[%emt 0:04:09]} 29. Ba3 {[%emt 0:06:36]} Ne5 {[%emt 0:06:47]} 30. fxe4 {[%emt 0:03:36]} fxe4 {[%emt 0:01:04]} 31. Bb4 {[%emt 0:02:28]} Rd8 {[%emt 0:02:00]} 32. Bc4 {[%emt 0:03:08]} Nd3 {[%emt 0:06:54]} 33. Bxd3 {[%emt 0:00:16]} exd3 {[%emt 0:00:02]} 34. Bc3 {[%emt 0:02:35]} Kc7 {[%emt 0:07:40]} 35. Bxf6 {[%emt 0:04:57]} gxf6 {[%emt 0:00:01]} 36. Rd1 {[%emt 0:02:29]} Kc6 {[%emt 0:00:22]} 37. Kc1 {[%emt 0:00:46]} Kc5 {[%emt 0:00:14]} 38. Kd2 {[%emt 0:01:34]} Kd4 {[%emt 0:00:18]} 39. Rc1 {[%emt 0:01:07]} Rd7 {[%emt 0:02:33]} 40. Rc4+ {[%emt 0:00:00]} Ke5 {[%emt 0:00:00]} 41. Rf4 {[%emt 0:04:00]} Rd6 {[%emt 0:11:16]} 42. Rf3 {[%emt 0:00:55]} Ke4 {[%emt 0:00:19]} 43. Re3+ {[%emt 0:00:21]} Kf5 {[%emt 0:00:04]} 44. Rxd3 {[%emt 0:00:10]} Ra6 {[%emt 0:00:30]} 45. Rd7 {[%emt 0:05:17]} h5 {[%emt 0:00:32]} 46. a3 {[%emt 0:03:14]} Rb6 {[%emt 0:01:53]} 47. b4 {[%emt 0:00:43]} Kg4 {[%emt 0:00:32]} 48. Rd4+ {[%emt 0:00:48]} Kf3 {[%emt 0:01:54]} 49. a4 {[%emt 0:02:41]} Kg2 {[%emt 0:01:11]} 50. Rh4 {[%emt 0:00:33]} Rd6+ {[%emt 0:00:04]} 51. Ke3 {[%emt 0:04:56]} Rd5 {[%emt 0:00:05]} 52. Ke4 {[%emt 0:00:41]} Rg5 {[%emt 0:01:00]} 53. Kf4 {[%emt 0:03:28]} Rd5 {[%emt 0:01:00]} 54. g4 {[%emt 0:02:54]} Rd4+ {[%emt 0:01:02]} 55. Kf5 {[%emt 0:00:19]} Rxb4 {[%emt 0:00:14]} 56. Rxh5 {[%emt 0:01:24]} Kf3 {[%emt 0:03:46]} 57. h3 {[%emt 0:01:59]} Rf4+ {[%emt 0:00:52]} 58. Kg6 {[%emt 0:01:49]} Kg3 {[%emt 0:00:36]} 59. Rf5 {[%emt 0:00:25]} Rxa4 {[%emt 0:00:21]} 60. Kxf6 {[%emt 0:00:51]} Kxh3 {[%emt 0:00:09]} 61. g5 {[%emt 0:00:13]} Kg4 {[%emt 0:00:19]} 62. g6 {[%emt 0:00:11]} Ra6+ {[%emt 0:00:14]} 63. Kf7 {[%emt 0:02:40]} Kxf5 {[%emt 0:00:02]} 64. g7 {[%emt 0:00:14]} Rf6+ {[%emt 0:00:20]} 65. Ke7 {[%emt 0:00:44]} Rg6 {[%emt 0:00:10]} 66. Kf7 {[%emt 0:00:13]} a5 {[%emt 0:00:03]} 67. g8=Q {[%emt 0:00:14]} Rxg8 {[%emt 0:00:02]} 68. Kxg8 {[%emt 0:00:17]} b5 {[%emt 0:00:02]} 0-1

[Event "FIDE WYCC Girls U14 2023"]
[Site "Montesilvano"]
[Date "2023.11.14"]
[Round "2.12"]
[White "Briem, Gudrun Fanney"]
[Black "Ciarletta, Iris"]
[Result "0-1"]
[ECO "A45"]
[WhiteElo "1692"]
[BlackElo "1882"]
[Annotator "NA"]
[PlyCount "130"]
[EventDate "2023.11.13"]
[EventType "swiss"]
[EventCountry "ITA"]
[SourceTitle "playchess.com"]
[Source "ChessBase"]
[SourceQuality "1"]
[TimeControl "40/5400+30:1800+30"]

1. d4 {[%emt 0:00:03]} Nf6 {[%emt 0:00:20]} 2. Bf4 {[%emt 0:00:08]} d6 {[%emt 0:00:36]} 3. Nc3 {[%emt 0:00:09]} Nbd7 {[%emt 0:01:05]} 4. e4 {[%emt 0:02:17]} e5 {[%emt 0:01:38]} 5. Bg5 {[%emt 0:00:48]} Be7 {[%emt 0:04:51]} 6. Qd2 {[%emt 0:06:58]} exd4 {[%emt 0:15:27]} 7. Qxd4 {[%emt 0:00:19]} O-O {[%emt 0:01:34]} 8. O-O-O {[%emt 0:07:46]} Ne5 {[%emt 0:05:49]} 9. Be2 {[%emt 0:14:25]} Bd7 {[%emt 0:10:05]} 10. h3 {[%emt 0:04:23]} Bc6 {[%emt 0:06:47]} 11. f4 {[%emt 0:06:09]} Ng6 {[%emt 0:02:25]} 12. f5 {[%emt 0:05:58]} Ne5 {[%emt 0:02:03]} 13. Bf4 {[%emt 0:00:35]} Nfd7 {[%emt 0:01:12]} 14. g4 {[%emt 0:03:34]} Bg5 {[%emt 0:03:26]} 15. Qd2 {[%emt 0:01:32]} Bxf4 {[%emt 0:01:08]} 16. Qxf4 {[%emt 0:00:07]} Qe7 {[%emt 0:03:04]} 17. g5 {[%emt 0:06:28]} f6 {[%emt 0:03:08]} 18. h4 {[%emt 0:01:49]} Nc5 {[%emt 0:02:27]} 19. Rh3 {[%emt 0:08:11]} fxg5 {[%emt 0:05:01]} 20. hxg5 {[%emt 0:00:34]} Ne6 {[%emt 0:00:36]} 21. Qh2 {[%emt 0:09:10]} Nxg5 {[%emt 0:00:20]} 22. Rh4 {[%emt 0:02:26]} h6 {[%emt 0:03:07]} 23. Rf1 {[%emt 0:01:21]} Qf6 {[%emt 0:02:56]} 24. Nf3 {[%emt 0:02:53]} Nexf3 {[%emt 0:04:01]} 25. Bxf3 {[%emt 0:00:12]} Qd4 {[%emt 0:06:13]} 26. Bh5 {[%emt 0:03:46]} Rf6 {[%emt 0:03:14]} 27. Re1 {[%emt 0:00:46]} Qe5 {[%emt 0:00:54]} 28. Qh1 {[%emt 0:00:51]} Raf8 {[%emt 0:01:09]} 29. Bg6 {[%emt 0:01:16]} Rxg6 {[%emt 0:00:45]} 30. fxg6 {[%emt 0:00:40]} Nf3 {[%emt 0:00:24]} 31. Rh3 {[%emt 0:05:09]} Qg5+ {[%emt 0:01:07]} 32. Kb1 {[%emt 0:00:39]} Nxe1 {[%emt 0:00:11]} 33. Qxe1 {[%emt 0:00:10]} Qxg6 {[%emt 0:00:13]} 34. b3 {[%emt 0:01:12]} Qf6 {[%emt 0:01:58]} 35. Qg3 {[%emt 0:00:46]} Qf4 {[%emt 0:01:45]} 36. b4 {[%emt 0:04:22]} Bxe4 {[%emt 0:03:44]} 37. Nxe4 {[%emt 0:00:32]} Qxe4 {[%emt 0:00:06]} 38. Qb3+ {[%emt 0:00:10]} Kh8 {[%emt 0:00:24]} 39. Re3 {[%emt 0:00:53]} Qd4 {[%emt 0:00:40]} 40. Re1 {[%emt 0:00:00]} Qf2 {[%emt 0:00:00]} 41. Qe6 {[%emt 0:01:46]} Qf7 {[%emt 0:03:37]} 42. Qe4 {[%emt 0:00:09]} c6 {[%emt 0:00:35]} 43. Qe2 {[%emt 0:01:36]} d5 {[%emt 0:01:52]} 44. Qe5 {[%emt 0:00:22]} Qf4 {[%emt 0:00:47]} 45. Qe7 {[%emt 0:00:12]} Qf7 {[%emt 0:00:43]} 46. Qe3 {[%emt 0:00:22]} b6 {[%emt 0:00:36]} 47. Qe5 {[%emt 0:01:34]} c5 {[%emt 0:04:15]} 48. b5 {[%emt 0:00:59]} d4 {[%emt 0:00:17]} 49. Rg1 {[%emt 0:00:59]} Qf6 {[%emt 0:02:46]} 50. Qg3 {[%emt 0:03:45]} Re8 {[%emt 0:02:07]} 51. Qc7 {[%emt 0:02:22]} Re7 {[%emt 0:01:14]} 52. Qg3 {[%emt 0:02:43]} Qe5 {[%emt 0:01:41]} 53. Qh3 {[%emt 0:03:37]} Kh7 {[%emt 0:01:00]} 54. Qh4 {[%emt 0:00:50]} c4 {[%emt 0:01:33]} 55. a4 {[%emt 0:01:10]} Qe4 {[%emt 0:00:38]} 56. Qh5 {[%emt 0:02:28]} d3 {[%emt 0:00:39]} 57. a5 {[%emt 0:01:31]} dxc2+ {[%emt 0:00:20]} 58. Ka2 {[%emt 0:00:14]} Qd3 {[%emt 0:01:53]} 59. Qf5+ {[%emt 0:01:41]} Qxf5 {[%emt 0:00:13]} 60. a6 {[%emt 0:00:11]} c1=N+ {[%emt 0:00:27]} 61. Ka1 {[%emt 0:00:45]} Nb3+ {[%emt 0:00:17]} 62. Kb2 {[%emt 0:00:44]} Re2+ {[%emt 0:00:07]} 63. Kc3 {[%emt 0:00:17]} Rc2+ {[%emt 0:00:09]} 64. Kb4 {[%emt 0:00:13]} Qc5+ {[%emt 0:00:06]} 65. Ka4 {[%emt 0:00:05]} Ra2# {[%emt 0:00:05]} 0-1